[Event "*** Titled Tuesday 3|2 Blitz"]
[Site "Chess.com"]
[Date "2015.12.01"]
[Round "1"]
[White "Gabrinsky"]
[Black "Alliswell998"]
[Result "1/2-1/2"]
[WhiteElo "2354"]
[BlackElo "2111"]
[TimeControl "180+2"]
[EndTime "17:09:59 PST"]
[Termination "Game drawn by agreement"]

1. e4 {[%clk 0:03:01.9]} 1... c5 {[%clk 0:03:00.2]} 2. Nf3 {[%clk 0:03:02.6]}
2... d6 {[%clk 0:03:00.7]} 3. d4 {[%clk 0:03:02.9]} 3... cxd4 {[%clk 0:03:02.6]}
4. Nxd4 {[%clk 0:03:04.7]} 4... Nf6 {[%clk 0:03:04.2]} 5. Nc3 {[%clk 0:03:06.3]}
5... a6 {[%clk 0:03:05.5]} 6. Be2 {[%clk 0:03:06.9]} 6... e5 {[%clk 0:03:06.7]}
7. Nb3 {[%clk 0:03:05.3]} 7... Be7 {[%clk 0:03:08.1]} 8. Be3 {[%clk 0:03:06.1]}
8... Be6 {[%clk 0:03:09.3]} 9. Qd3 {[%clk 0:03:06.2]} 9... Nc6 {[%clk
0:03:08.9]} 10. O-O {[%clk 0:03:05.2]} 10... O-O {[%clk 0:03:08.7]} 11. a3
{[%clk 0:02:56.2]} 11... Rc8 {[%clk 0:03:08.5]} 12. Nd5 {[%clk 0:02:53.4]} 12...
Bxd5 {[%clk 0:03:07.6]} 13. exd5 {[%clk 0:02:54.2]} 13... Nb8 {[%clk 0:03:08.1]}
14. c4 {[%clk 0:02:54.4]} 14... Nbd7 {[%clk 0:03:08.8]} 15. Rac1 {[%clk
0:02:52.7]} 15... b6 {[%clk 0:03:02.1]} 16. Rfd1 {[%clk 0:02:53.1]} 16... a5
{[%clk 0:03:02.3]} 17. Rc2 {[%clk 0:02:34.7]} 17... Qc7 {[%clk 0:02:59.8]} 18.
h3 {[%clk 0:02:30.5]} 18... Rfe8 {[%clk 0:02:59.1]} 19. Bf1 {[%clk 0:02:26.4]}
19... Bf8 {[%clk 0:02:54.6]} 20. Nd2 {[%clk 0:02:25.8]} 20... Nc5 {[%clk
0:02:53.4]} 21. Qe2 {[%clk 0:02:19.7]} 21... a4 {[%clk 0:02:47.5]} 22. Nb1
{[%clk 0:02:11.9]} 22... Nfe4 {[%clk 0:02:39]} 23. Qe1 {[%clk 0:01:52.5]} 23...
f5 {[%clk 0:02:16.9]} 24. f3 {[%clk 0:01:53]} 24... Nf6 {[%clk 0:02:16.9]} 25.
Nc3 {[%clk 0:01:52.9]} 25... f4 {[%clk 0:02:09.6]} 26. Bf2 {[%clk 0:01:52.3]}
26... e4 {[%clk 0:02:08.2]} 27. fxe4 {[%clk 0:01:27.7]} 27... Nfxe4 {[%clk
0:02:05]} 28. Re2 {[%clk 0:01:28.3]} 28... Nxf2 {[%clk 0:01:26.8]} 29. Rxe8
{[%clk 0:01:19]} 29... Nxd1 {[%clk 0:01:19.5]} 30. Rxc8 {[%clk 0:01:09.9]} 30...
Qxc8 {[%clk 0:01:21.4]} 31. Qxd1 {[%clk 0:01:10.5]} 31... Qf5 {[%clk 0:01:20]}
32. Nxa4 {[%clk 0:01:08.1]} 32... Nxa4 {[%clk 0:01:08.3]} 33. Qxa4 {[%clk
0:01:10]} 33... f3 {[%clk 0:01:09.9]} 34. Qb3 {[%clk 0:00:55.1]} 34... f2+
{[%clk 0:01:08.3]} 35. Kh1 {[%clk 0:00:54.6]} 35... Qb1 {[%clk 0:01:08.1]} 36.
Qd3 {[%clk 0:00:46.8]} 36... Qxb2 {[%clk 0:01:07.5]} 37. g3 {[%clk 0:00:44.4]}
37... g6 {[%clk 0:00:55.6]} 38. Qe3 {[%clk 0:00:43.3]} 38... Kg7 {[%clk
0:00:47.9]} 39. Kg2 {[%clk 0:00:43]} 39... h6 {[%clk 0:00:46.3]} 40. Qxf2 {[%clk
0:00:41.1]} 40... Qxa3 {[%clk 0:00:46.5]} 41. Qxb6 {[%clk 0:00:42.2]} 41... Be7
{[%clk 0:00:43.3]} 42. h4 {[%clk 0:00:31.3]} 42... Qa2+ {[%clk 0:00:38.3]} 43.
Kh3 {[%clk 0:00:28.6]} 43... Qd2 {[%clk 0:00:31.5]} 44. Qc7 {[%clk 0:00:16.8]}
44... Qe1 {[%clk 0:00:29.3]} 45. Bg2 {[%clk 0:00:17.1]} 45... h5 {[%clk
0:00:28.5]} 46. c5 {[%clk 0:00:17.9]} 46... dxc5 {[%clk 0:00:27]} 47. d6 {[%clk
0:00:18.9]} 47... Qe6+ {[%clk 0:00:27.9]} 48. Kh2 {[%clk 0:00:18.3]} 48... Qxd6
{[%clk 0:00:29.2]} 49. Qc6 {[%clk 0:00:19.8]} 49... Qxc6 {[%clk 0:00:20.9]} 50.
Bxc6 {[%clk 0:00:21.7]} 50... Kf6 {[%clk 0:00:20.5]} 51. Kg2 {[%clk 0:00:23.1]}
51... Bd6 {[%clk 0:00:19]} 52. Kf3 {[%clk 0:00:23.3]} 52... c4 {[%clk
0:00:18.4]} 53. Bb5 {[%clk 0:00:22]} 53... c3 {[%clk 0:00:19.6]} 54. Bd3 {[%clk
0:00:23.4]} 54... Bb8 {[%clk 0:00:18.5]} 55. Bc2 {[%clk 0:00:24.7]} 55... g5
{[%clk 0:00:18.7]} 56. hxg5+ {[%clk 0:00:25.8]} 56... Kxg5 {[%clk 0:00:20.6]}
57. Bd3 {[%clk 0:00:26]} 57... Be5 {[%clk 0:00:20.3]} 58. Bc2 {[%clk 0:00:27.4]}
58... Bd4 {[%clk 0:00:21.5]} 59. Bd3 {[%clk 0:00:28.6]} 59... Kf6 {[%clk
0:00:23]} 60. Bc2 {[%clk 0:00:27.4]} 60... Ba7 {[%clk 0:00:24.3]} 61. Bb1 {[%clk
0:00:28]} 61... Bb8 {[%clk 0:00:26]} 62. Bc2 {[%clk 0:00:28]} 62... Ke5 {[%clk
0:00:27.6]} 63. g4 {[%clk 0:00:27.3]} 63... h4 {[%clk 0:00:28.4]} 64. g5 {[%clk
0:00:28.3]} 64... Kd4 {[%clk 0:00:25.8]} 65. g6 {[%clk 0:00:28]} 65... Be5
{[%clk 0:00:26.9]} 66. Kg4 {[%clk 0:00:29.3]} 1/2-1/2

[Event "*** Titled Tuesday 3|2 Blitz"]
[Site "Chess.com"]
[Date "2015.12.01"]
[Round "1"]
[White "ntmh281"]
[Black "Iball95"]
[Result "0-1"]
[WhiteElo "2112"]
[BlackElo "2420"]
[TimeControl "180+2"]
[EndTime "17:10:09 PST"]
[Termination "Iball95 won by checkmate"]

1. d4 {[%clk 0:02:57.4]} 1... Nf6 {[%clk 0:03:00.5]} 2. Nf3 {[%clk 0:02:57.3]}
2... g6 {[%clk 0:03:01.1]} 3. Bf4 {[%clk 0:02:54.3]} 3... Bg7 {[%clk 0:02:59.5]}
4. e3 {[%clk 0:02:55.5]} 4... O-O {[%clk 0:02:58.5]} 5. Be2 {[%clk 0:02:56.1]}
5... d6 {[%clk 0:02:56.9]} 6. O-O {[%clk 0:02:56.8]} 6... Nc6 {[%clk 0:02:57.4]}
7. h3 {[%clk 0:02:57.7]} 7... Nd7 {[%clk 0:02:57.7]} 8. Bh2 {[%clk 0:02:57.9]}
8... e5 {[%clk 0:02:57.6]} 9. c3 {[%clk 0:02:57.9]} 9... Re8 {[%clk 0:02:57.5]}
10. Nbd2 {[%clk 0:02:53.8]} 10... Nf6 {[%clk 0:02:33.1]} 11. dxe5 {[%clk
0:02:48.8]} 11... Nxe5 {[%clk 0:02:31]} 12. Nxe5 {[%clk 0:02:38.6]} 12... dxe5
{[%clk 0:02:32.9]} 13. Nc4 {[%clk 0:02:39.7]} 13... Nd5 {[%clk 0:02:20.6]} 14.
Qc2 {[%clk 0:02:30.2]} 14... Qg5 {[%clk 0:02:14.5]} 15. Bf3 {[%clk 0:02:24.7]}
15... Nf6 {[%clk 0:01:58.5]} 16. Bg3 {[%clk 0:02:20]} 16... Nh5 {[%clk
0:01:52.9]} 17. h4 {[%clk 0:02:18.2]} 17... Qf5 {[%clk 0:01:44.2]} 18. Qxf5
{[%clk 0:02:08.5]} 18... Bxf5 {[%clk 0:01:46.1]} 19. Bh2 {[%clk 0:02:08.5]}
19... Bd3 {[%clk 0:01:39.6]} 20. Na5 {[%clk 0:01:52.9]} 20... Bxf1 {[%clk
0:01:39.3]} 21. Kxf1 {[%clk 0:01:50.1]} 21... e4 {[%clk 0:01:15]} 22. Be2 {[%clk
0:01:48.1]} 22... Be5 {[%clk 0:01:05.8]} 23. g3 {[%clk 0:01:33.1]} 23... Rab8
{[%clk 0:00:59.9]} 24. Nc4 {[%clk 0:01:33.3]} 24... Nf6 {[%clk 0:00:53.3]} 25.
Nxe5 {[%clk 0:01:31.1]} 25... Rxe5 {[%clk 0:00:55.2]} 26. g4 {[%clk 0:01:31.2]}
26... Re7 {[%clk 0:00:55.3]} 27. Rd1 {[%clk 0:01:29.3]} 27... Kf8 {[%clk
0:00:54.1]} 28. g5 {[%clk 0:01:29.9]} 28... Ng8 {[%clk 0:00:39.8]} 29. Rd4
{[%clk 0:01:27.9]} 29... Ke8 {[%clk 0:00:37]} 30. Bb5+ {[%clk 0:01:28.2]} 30...
Kf8 {[%clk 0:00:36.4]} 31. Bc4 {[%clk 0:01:25.2]} 31... f5 {[%clk 0:00:21.2]}
32. Ke2 {[%clk 0:01:15.8]} 32... a6 {[%clk 0:00:21.8]} 33. Bf4 {[%clk
0:01:15.4]} 33... Kg7 {[%clk 0:00:21.3]} 34. Bb3 {[%clk 0:01:13.7]} 34... h6
{[%clk 0:00:21.1]} 35. Rc4 {[%clk 0:01:12.7]} 35... Rc8 {[%clk 0:00:21.4]} 36.
Rc5 {[%clk 0:01:12.4]} 36... hxg5 {[%clk 0:00:19]} 37. hxg5 {[%clk 0:01:11.7]}
37... c6 {[%clk 0:00:19.6]} 38. Be5+ {[%clk 0:01:11.9]} 38... Kh7 {[%clk
0:00:18]} 39. Bf4 {[%clk 0:01:07.1]} 39... Rd8 {[%clk 0:00:16.8]} 40. Rc4 {[%clk
0:01:04.3]} 40... Kg7 {[%clk 0:00:17.1]} 41. Rd4 {[%clk 0:00:58.7]} 41... Rxd4
{[%clk 0:00:17.3]} 42. cxd4 {[%clk 0:00:58]} 42... Re8 {[%clk 0:00:16.9]} 43.
Be5+ {[%clk 0:00:57.3]} 43... Kf8 {[%clk 0:00:17.2]} 44. Bc4 {[%clk 0:00:56.5]}
44... Ne7 {[%clk 0:00:17.4]} 45. Bd6 {[%clk 0:00:53.2]} 45... Kg7 {[%clk
0:00:16.8]} 46. a4 {[%clk 0:00:52.1]} 46... Nd5 {[%clk 0:00:17.4]} 47. Be5+
{[%clk 0:00:49.4]} 47... Kf7 {[%clk 0:00:17.9]} 48. a5 {[%clk 0:00:48.6]} 48...
Ke6 {[%clk 0:00:18.2]} 49. f3 {[%clk 0:00:44]} 49... exf3+ {[%clk 0:00:16]} 50.
Kxf3 {[%clk 0:00:44.7]} 50... Re7 {[%clk 0:00:17.9]} 51. e4 {[%clk 0:00:37.1]}
51... fxe4+ {[%clk 0:00:19.8]} 52. Kxe4 {[%clk 0:00:38]} 52... Rh7 {[%clk
0:00:21]} 53. Bd3 {[%clk 0:00:32.1]} 53... Rh3 {[%clk 0:00:20.5]} 54. Be2 {[%clk
0:00:20.5]} 54... Re3# {[%clk 0:00:19.9]} 0-1

[Event "*** Titled Tuesday 3|2 Blitz"]
[Site "Chess.com"]
[Date "2015.12.01"]
[Round "1"]
[White "Viaje"]
[Black "Gevorg_Harutjunyan"]
[Result "0-1"]
[WhiteElo "2194"]
[BlackElo "2524"]
[TimeControl "180+2"]
[EndTime "17:10:13 PST"]
[Termination "Gevorg_Harutjunyan won by resignation"]

1. d4 {[%clk 0:03:01.9]} 1... Nf6 {[%clk 0:03:00.5]} 2. c4 {[%clk 0:03:01.2]}
2... g6 {[%clk 0:03:01.5]} 3. Nc3 {[%clk 0:03:02.3]} 3... Bg7 {[%clk 0:03:02.9]}
4. e4 {[%clk 0:03:03.2]} 4... d6 {[%clk 0:03:04.4]} 5. Be2 {[%clk 0:03:04.6]}
5... O-O {[%clk 0:03:05.6]} 6. Nf3 {[%clk 0:03:06.2]} 6... e5 {[%clk 0:03:07]}
7. O-O {[%clk 0:03:07.5]} 7... Nbd7 {[%clk 0:03:03.3]} 8. Re1 {[%clk 0:03:05.9]}
8... c6 {[%clk 0:03:00.2]} 9. Bf1 {[%clk 0:03:06.4]} 9... exd4 {[%clk
0:03:00.8]} 10. Nxd4 {[%clk 0:03:06.8]} 10... Re8 {[%clk 0:03:02.2]} 11. Nc2
{[%clk 0:02:53.1]} 11... Qc7 {[%clk 0:02:41.1]} 12. Bf4 {[%clk 0:02:46.5]} 12...
Ne5 {[%clk 0:02:42]} 13. Rb1 {[%clk 0:02:46.2]} 13... Be6 {[%clk 0:02:37.4]} 14.
b3 {[%clk 0:02:41.8]} 14... Nh5 {[%clk 0:02:38.3]} 15. Bd2 {[%clk 0:02:39.5]}
15... Rad8 {[%clk 0:02:23.1]} 16. h3 {[%clk 0:02:34.8]} 16... f5 {[%clk
0:02:03.7]} 17. Nd4 {[%clk 0:02:22]} 17... f4 {[%clk 0:01:42.2]} 18. Rc1 {[%clk
0:02:16.1]} 18... Qf7 {[%clk 0:01:31.9]} 19. Nxe6 {[%clk 0:02:09.7]} 19... Rxe6
{[%clk 0:01:33.8]} 20. Be2 {[%clk 0:02:08.2]} 20... f3 {[%clk 0:01:31.1]} 21.
Bxf3 {[%clk 0:02:09.1]} 21... Rf8 {[%clk 0:01:21.7]} 22. Bxh5 {[%clk 0:02:01.6]}
22... Qxf2+ {[%clk 0:01:15.9]} 23. Kh1 {[%clk 0:02:02.1]} 23... gxh5 {[%clk
0:01:11.5]} 24. Be3 {[%clk 0:01:58]} 24... Qg3 {[%clk 0:01:03.6]} 25. Qe2 {[%clk
0:01:39.3]} 25... Rg6 {[%clk 0:00:58.4]} 26. Rf1 {[%clk 0:01:39.1]} 26... Nd3
{[%clk 0:00:19.6]} 27. Rxf8+ {[%clk 0:01:31.9]} 27... Kxf8 {[%clk 0:00:13.7]}
28. Rf1+ {[%clk 0:01:31.6]} 28... Kg8 {[%clk 0:00:14.8]} 29. Rf3 {[%clk
0:01:27.8]} 29... Qe1+ {[%clk 0:00:15.7]} 30. Qxe1 {[%clk 0:01:27.8]} 30... Nxe1
{[%clk 0:00:17.6]} 31. Rf2 {[%clk 0:01:25.2]} 31... Bxc3 {[%clk 0:00:18.1]} 32.
Kg1 {[%clk 0:01:11.9]} 32... Nd3 {[%clk 0:00:12.8]} 33. Rf3 {[%clk 0:01:11.1]}
33... Ne5 {[%clk 0:00:11.3]} 34. Rf2 {[%clk 0:01:12.2]} 34... Bb4 {[%clk
0:00:10.7]} 35. Kf1 {[%clk 0:01:13.1]} 35... Bc5 {[%clk 0:00:11.2]} 36. Bxc5
{[%clk 0:01:13.3]} 36... dxc5 {[%clk 0:00:13.1]} 37. Rd2 {[%clk 0:01:14.6]}
37... Rf6+ {[%clk 0:00:12.7]} 38. Ke2 {[%clk 0:01:15.1]} 38... h4 {[%clk
0:00:12.3]} 39. Rd8+ {[%clk 0:01:15.3]} 39... Rf8 {[%clk 0:00:12.7]} 40. Rd6
{[%clk 0:01:13.8]} 40... Kf7 {[%clk 0:00:10.5]} 41. Rh6 {[%clk 0:01:14.3]} 41...
Rg8 {[%clk 0:00:09.8]} 42. Kf2 {[%clk 0:01:13]} 42... Nd3+ {[%clk 0:00:09.9]}
43. Ke3 {[%clk 0:01:13.5]} 43... Nc1 {[%clk 0:00:10.6]} 44. Rxh7+ {[%clk
0:01:13.7]} 44... Rg7 {[%clk 0:00:12]} 45. Rxh4 {[%clk 0:01:09.8]} 45... Rxg2
{[%clk 0:00:11.3]} 46. Rh7+ {[%clk 0:01:10.1]} 46... Rg7 {[%clk 0:00:10.3]} 47.
Rh5 {[%clk 0:01:11.7]} 47... Nxa2 {[%clk 0:00:11.1]} 48. Rxc5 {[%clk 0:01:11.9]}
48... Rg3+ {[%clk 0:00:12.1]} 49. Kf4 {[%clk 0:01:12.2]} 49... Rxh3 {[%clk
0:00:13.3]} 50. Ra5 {[%clk 0:01:13.2]} 50... Nc1 {[%clk 0:00:12.1]} 51. Rxa7
{[%clk 0:01:13.6]} 51... Rxb3 {[%clk 0:00:12.8]} 52. Ke5 {[%clk 0:01:13]} 52...
Ke7 {[%clk 0:00:13.7]} 53. Kd4 {[%clk 0:01:12.6]} 53... Ne2+ {[%clk 0:00:12.8]}
54. Kc5 {[%clk 0:01:13]} 54... Ng3 {[%clk 0:00:14]} 55. e5 {[%clk 0:01:10.4]}
55... Ke6 {[%clk 0:00:12.7]} 56. Ra8 {[%clk 0:01:01.2]} 56... Kxe5 {[%clk
0:00:12.6]} 57. Re8+ {[%clk 0:01:02.1]} 57... Kf6 {[%clk 0:00:13.4]} 58. Kd6
{[%clk 0:01:03.3]} 58... Nf5+ {[%clk 0:00:13]} 59. Kc7 {[%clk 0:01:03.7]} 59...
b5 {[%clk 0:00:14]} 60. cxb5 {[%clk 0:00:59.7]} 60... cxb5 {[%clk 0:00:15]} 61.
Kc6 {[%clk 0:01:00.4]} 61... Nd4+ {[%clk 0:00:12.8]} 62. Kc5 {[%clk 0:01:01]}
62... Ne6+ {[%clk 0:00:14]} 63. Kc6 {[%clk 0:00:58.9]} 63... Ke5 {[%clk
0:00:13.4]} 64. Rb8 {[%clk 0:00:59.4]} 64... Nd4+ {[%clk 0:00:14.1]} 65. Kc5
{[%clk 0:01:00.2]} 65... Rc3+ {[%clk 0:00:13.5]} 66. Kb4 {[%clk 0:01:01.2]}
66... Rc4+ {[%clk 0:00:10.4]} 67. Ka3 {[%clk 0:01:02]} 67... Ra4+ {[%clk
0:00:11.3]} 68. Kb2 {[%clk 0:01:02.8]} 68... Kd5 {[%clk 0:00:12.8]} 69. Rc8
{[%clk 0:00:59.5]} 69... Nc6 {[%clk 0:00:12.5]} 70. Rb8 {[%clk 0:00:59.6]} 70...
Kc4 {[%clk 0:00:13.2]} 0-1

[Event "*** Titled Tuesday 3|2 Blitz"]
[Site "Chess.com"]
[Date "2015.12.01"]
[Round "1"]
[White "tigra"]
[Black "gauranga"]
[Result "0-1"]
[WhiteElo "2236"]
[BlackElo "2033"]
[TimeControl "180+2"]
[EndTime "17:11:06 PST"]
[Termination "gauranga won by resignation"]

1. e4 {[%clk 0:03:01.9]} 1... b6 {[%clk 0:03:00]} 2. d4 {[%clk 0:03:02.3]} 2...
Bb7 {[%clk 0:03:01.3]} 3. Bd3 {[%clk 0:03:03.9]} 3... Nf6 {[%clk 0:03:02.4]} 4.
Qe2 {[%clk 0:03:04.8]} 4... Nc6 {[%clk 0:03:03.1]} 5. c3 {[%clk 0:03:04.3]} 5...
e5 {[%clk 0:03:04.2]} 6. Nf3 {[%clk 0:03:04.6]} 6... d6 {[%clk 0:03:04.9]} 7.
O-O {[%clk 0:02:55.2]} 7... Nd7 {[%clk 0:03:05.7]} 8. Rd1 {[%clk 0:02:44.5]}
8... g6 {[%clk 0:02:37.9]} 9. Bg5 {[%clk 0:02:39.3]} 9... Qc8 {[%clk 0:02:34.5]}
10. Nbd2 {[%clk 0:02:28.7]} 10... Bg7 {[%clk 0:02:35.1]} 11. d5 {[%clk
0:02:24.9]} 11... Ne7 {[%clk 0:02:33.6]} 12. c4 {[%clk 0:02:22.8]} 12... h6
{[%clk 0:02:05.8]} 13. Bh4 {[%clk 0:02:21.3]} 13... a5 {[%clk 0:01:33.2]} 14. b3
{[%clk 0:02:15.2]} 14... Nc5 {[%clk 0:01:21.9]} 15. Bc2 {[%clk 0:02:12.3]} 15...
Qd7 {[%clk 0:01:23.4]} 16. Nb1 {[%clk 0:02:10.7]} 16... O-O {[%clk 0:01:22.3]}
17. Nfd2 {[%clk 0:02:04.3]} 17... f5 {[%clk 0:01:19]} 18. f3 {[%clk 0:02:04.9]}
18... g5 {[%clk 0:01:13.2]} 19. Bf2 {[%clk 0:02:04.7]} 19... f4 {[%clk
0:01:14.6]} 20. Nc3 {[%clk 0:02:04.4]} 20... Ng6 {[%clk 0:01:14.2]} 21. a3
{[%clk 0:02:04.5]} 21... Qf7 {[%clk 0:01:07.1]} 22. b4 {[%clk 0:02:04.2]} 22...
Nd7 {[%clk 0:01:07.9]} 23. Na4 {[%clk 0:01:44.3]} 23... Ba6 {[%clk 0:00:55]} 24.
Bd3 {[%clk 0:01:43.9]} 24... h5 {[%clk 0:00:52.1]} 25. c5 {[%clk 0:01:41.7]}
25... Bxd3 {[%clk 0:00:52.4]} 26. Qxd3 {[%clk 0:01:41.3]} 26... bxc5 {[%clk
0:00:50.4]} 27. bxc5 {[%clk 0:01:41.8]} 27... g4 {[%clk 0:00:52]} 28. cxd6
{[%clk 0:01:23.2]} 28... cxd6 {[%clk 0:00:52.5]} 29. Nc4 {[%clk 0:01:18.6]}
29... Qf6 {[%clk 0:00:53.7]} 30. Nab6 {[%clk 0:01:17.3]} 30... Nxb6 {[%clk
0:00:52.6]} 31. Nxb6 {[%clk 0:01:18]} 31... Rad8 {[%clk 0:00:52.8]} 32. Kh1
{[%clk 0:01:02.7]} 32... g3 {[%clk 0:00:53.5]} 33. Bg1 {[%clk 0:00:54]} 33...
gxh2 {[%clk 0:00:54.1]} 34. Bf2 {[%clk 0:00:54.2]} 34... Rf7 {[%clk 0:00:46.5]}
35. Qd2 {[%clk 0:00:46.7]} 35... Bf8 {[%clk 0:00:46.3]} 36. Qxa5 {[%clk
0:00:46.6]} 36... Rg7 {[%clk 0:00:46.4]} 37. a4 {[%clk 0:00:35.1]} 37... Qg5
{[%clk 0:00:47.2]} 38. Ra2 {[%clk 0:00:19.9]} 38... h4 {[%clk 0:00:44.4]} 39.
Qb5 {[%clk 0:00:17.6]} 39... h3 {[%clk 0:00:43.2]} 40. gxh3 {[%clk 0:00:14.4]}
40... Nh4 {[%clk 0:00:44.2]} 41. Qf1 {[%clk 0:00:11.3]} 41... Nxf3 {[%clk
0:00:42.6]} 42. Ra3 {[%clk 0:00:10.8]} 42... Rb8 {[%clk 0:00:32.1]} 43. a5
{[%clk 0:00:11.5]} 43... Be7 {[%clk 0:00:31.7]} 44. Rxf3 {[%clk 0:00:11.3]}
44... Bd8 {[%clk 0:00:32]} 45. Kxh2 {[%clk 0:00:12.3]} 45... Qh5 {[%clk
0:00:22.3]} 46. Rdd3 {[%clk 0:00:12.2]} 46... Bc7 {[%clk 0:00:11]} 47. Bg1
{[%clk 0:00:12.3]} 47... Kh7 {[%clk 0:00:12.3]} 48. Rc3 {[%clk 0:00:10.9]} 48...
Rbg8 {[%clk 0:00:13.1]} 49. Rxc7 {[%clk 0:00:08]} 49... Rxc7 {[%clk 0:00:13.7]}
50. Rf2 {[%clk 0:00:07.7]} 50... Rcg7 {[%clk 0:00:14.3]} 51. a6 {[%clk
0:00:04.9]} 51... f3 {[%clk 0:00:11.4]} 52. Qe1 {[%clk 0:00:03]} 52... Rxg1
{[%clk 0:00:12.4]} 53. Qxg1 {[%clk 0:00:03.8]} 53... Rxg1 {[%clk 0:00:13.5]} 54.
Kxg1 {[%clk 0:00:05.3]} 54... Qg5+ {[%clk 0:00:14.6]} 55. Kh1 {[%clk 0:00:05.9]}
55... Qc1+ {[%clk 0:00:15.5]} 56. Kh2 {[%clk 0:00:06.6]} 56... Qf4+ {[%clk
0:00:16.5]} 57. Kg1 {[%clk 0:00:07.9]} 57... Qc1+ {[%clk 0:00:17.4]} 58. Kh2
{[%clk 0:00:09]} 58... Qf4+ {[%clk 0:00:18.3]} 59. Kg1 {[%clk 0:00:10.1]} 59...
Qc1+ {[%clk 0:00:19.6]} 60. Kh2 {[%clk 0:00:11.4]} 60... Qf4+ {[%clk 0:00:20.8]}
61. Kg1 {[%clk 0:00:12.7]} 61... Qc1+ {[%clk 0:00:21.4]} 62. Kh2 {[%clk
0:00:13.9]} 62... Qf4+ {[%clk 0:00:22]} 63. Kg1 {[%clk 0:00:14.8]} 63... Qg3+
{[%clk 0:00:21.3]} 64. Kf1 {[%clk 0:00:15.4]} 64... Qxh3+ {[%clk 0:00:22.7]} 65.
Ke1 {[%clk 0:00:16.8]} 65... Qh1+ {[%clk 0:00:23.8]} 66. Kd2 {[%clk 0:00:17.8]}
66... Qb1 {[%clk 0:00:24.7]} 67. Nc8 {[%clk 0:00:08.8]} 67... Qb2+ {[%clk
0:00:25]} 68. Kd3 {[%clk 0:00:05.3]} 68... Qxf2 {[%clk 0:00:25.5]} 69. a7 {[%clk
0:00:06.2]} 69... Qe2+ {[%clk 0:00:26.2]} 70. Kc3 {[%clk 0:00:07.2]} 70... Qa2
{[%clk 0:00:23.2]} 71. Kd3 {[%clk 0:00:06.7]} 71... f2 {[%clk 0:00:24.5]} 0-1